lending/lending_fUSD_20250429
["ID","MTS","AMOUNT","RATE_DAILY","PERIOD"]
[359373654,1745954534844,-380.24630297,0.00045933,120]
[359373655,1745954534882,-2371.0,0.00045933,120]
[359373656,1745954534920,-158.0,0.00045933,120]
[359373657,1745954534959,-528.0,0.00045933,120]
[359373658,1745954534997,-2105.0,0.00045933,60]
[359373659,1745954535040,-502455.48,0.00045933,30]
[359373660,1745954535080,-1594.9122517,0.00045933,120]
[359373661,1745954535119,-1000.0,0.00045933,30]
[359373662,1745954535156,-510.74644999,0.00045933,30]
[359373663,1745954535193,-567.77651313,0.00045933,120]
[359373664,1745954535230,-91171.67041754,0.00045933,120]
[359373665,1745954538887,-55249.79601191,0.00045933,120]
[359373666,1745954538929,-20292.30760398,0.00045933,39]
[359373667,1745954538971,-223040.61108855,0.00045933,30]
[359373668,1745954539017,-1926.08495685,0.00045933,120]
[359373669,1745954539063,-179.0,0.00045933,120]
[359373670,1745954539107,-3699312.20033871,0.00045933,30]
[359373671,1745954543229,-2930182.42966129,0.00045933,30]
[359373672,1745954543274,-303190.66350361,0.00045933,30]
[359373673,1745954543313,-775.90260373,0.00045933,120]
[359373674,1745954543351,-1800.0,0.00045933,120]
[359373675,1745954543391,-1047.83575208,0.00045933,30]
[359373676,1745954543434,-5000.0,0.00045933,34]
[359373677,1745954543475,-1214.39689555,0.00045933,120]
[359373678,1745954543513,-1996.59671363,0.00045933,30]
[359373679,1745954543552,-117767.98231264,0.00045933,60]
[359373680,1745954543593,-2521.0,0.00045933,43]
[359373681,1745954543634,-4030.73706701,0.00045933,30]
[359373682,1745954543675,-8484.72103839,0.00045933,120]
[359373683,1745954543714,-1072.0,0.00045933,30]
[359373684,1745954543751,-1072.0,0.00045933,30]
[359373685,1745954543791,-1111.11651169,0.00045933,30]
[359373686,1745954543830,-1000.0,0.00045933,120]
[359373687,1745954543872,-1000.0,0.00045933,120]
[359373688,1745954543912,-1029.99926968,0.00045933,120]
[359373689,1745954702501,1000.0,0.00045933,30]
[359373690,1745954704881,996.75,0.00045933,120]
[359373691,1745954705725,510.74644999,0.00045933,30]
[359373692,1745954707925,227.160964,7.945e-05,2]
[359373693,1745954708745,1033.41298978,0.00045933,30]
[359373694,1745954711239,332.81167611,0.00045933,120]
[359373695,1745954715738,1072.0,0.00045933,30]
[359373696,1745954717943,1072.0,0.00045933,30]
[359373697,1745954720095,364.51744476,0.00045933,120]
[359373698,1745954720139,1111.11651169,0.00045933,30]
[359373699,1745954728867,526.19509777,0.00045933,30]
[359373700,1745954729529,414.88856397,0.00045933,30]
[359373701,1745954744065,1004.54700895,0.00045933,30]
[359373702,1745954762435,306.33922271,0.00045933,90]
[359373703,1745954766685,368.71473446,0.00045933,120]
[359373704,1745954777907,567.78635595,0.00045933,120]
[359373705,1745954783498,171.70756229,0.000199,3]
[359373706,1745954822736,158.08769554,0.00045933,120]
[359373707,1745954823952,500.0,0.00045933,120]
[359373708,1745954824144,200.0,0.00045933,120]
[359373709,1745954824566,518.5,0.00045933,120]
[359373710,1745954824739,207.4,0.00045933,120]
[359373711,1745954825358,215.0738,0.00045933,120]
[359373712,1745954825673,537.6845,0.00045933,120]
[359373713,1745954826026,223.0315306,0.00045933,120]
[359373714,1745954826618,231.28369723,0.00045933,120]
[359373715,1745954827208,239.84119403,0.00045933,120]
[359373716,1745954827254,151.0,0.00045933,34]
[359373717,1745954827400,281.7605727,0.00045933,120]
[359373718,1745954827818,248.71531821,0.00045933,120]
[359373719,1745954827867,151.0,0.00045933,34]
[359373720,1745954828432,257.91778498,0.00045933,120]
[359373721,1745954829051,267.46074303,0.00045933,120]
[359373722,1745954829680,277.35679052,0.00045933,120]
[359373723,1745954830867,287.61899177,0.00045933,120]
[359373724,1745954831517,287.61899177,0.00045933,120]
[359373725,1745954832388,2243.84340061,0.00021,120]
[359373726,1745954833594,1981.06578267,0.0002301,120]
[359373727,1745954835324,199.87604886,0.00045933,120]
[359373729,1745954856204,503.62404984,0.00045933,120]
[359373730,1745954860996,500.0,0.00045933,120]
[359373731,1745954866301,2372.78009386,0.00045933,120]
[359373732,1745954869922,3146.90260373,0.00045933,120]
[359373733,1745954874272,233.01388328,0.00045933,30]
[359373734,1745954875371,506.12618866,0.00045933,120]
[359373735,1745954877295,2020.0,0.0002,120]
[359373736,1745954880765,59016.52037728,0.0002,4]
[359373737,1745954881944,500.0,0.00045933,30]
[359373738,1745954883408,314.83844313,0.00045933,30]
[359373739,1745954885584,210.90262116,0.00045933,120]
[359373740,1745954912063,492.19747132,0.00045933,120]
[359373741,1745954914618,155.94160806,0.00045933,120]
[359373742,1745954914753,1798.15572621,0.00045933,120]
[359373743,1745954914830,526.62112627,0.00045933,120]
[359373744,1745954915282,610.80855471,0.00045933,120]
[359373745,1745954915638,396.1080504,0.00045933,120]
[359373746,1745954917171,260.70979858,0.00045933,120]
[359373747,1745954917467,243.44466257,0.00045933,30]
[359373748,1745954917944,2840.37560416,0.00045933,120]
[359373749,1745954918318,1011.61926865,0.00045933,120]
[359373750,1745954918444,2288.01356112,0.00045933,30]
[359373751,1745954918635,241.94295331,0.00045933,30]
[359373752,1745954918833,1147.66922251,0.00045933,120]
[359373753,1745954920164,320.0,0.00023,10]
[359373754,1745954920638,443.84292145,0.00045933,120]
[359373756,1745954921662,972.82331932,0.00045933,60]
[359373757,1745954923867,2349.999999,0.000151,2]
[359373758,1745954924435,2601.0,0.000145,120]
[359373759,1745954924598,455.03272,0.00045933,120]
[359373760,1745954925343,3585.07767288,0.00045933,30]
[359373762,1745954926018,411.581305,0.00028,60]
[359373763,1745954926057,202.56589039,0.00045933,120]
[359373764,1745954928274,535.38673406,0.00045933,30]
[359373765,1745954930761,1176.9088283,0.00045933,30]
[359373766,1745954930891,2105.07129166,0.00045933,30]
[359373767,1745954931017,1926.08495685,0.00045933,120]
[359373768,1745954931063,268.83611023,0.00045933,30]
[359373769,1745954931125,1996.59671363,0.00045933,120]
[359373770,1745954931272,1045.74999138,0.00045933,60]
[359373771,1745954932359,1000.0,0.00045933,120]
[359373772,1745954932620,1000.0,0.00045933,120]
[359373773,1745954932894,1029.99926968,0.00045933,120]
[359373774,1745954947963,764.03021862,0.00045933,60]
[359373775,1745954958511,198.95,0.00019308,2]
[359373776,1745954963969,-161.28419144,0.00019799,2]
[359373777,1745954967964,250.0,0.00017,2]
[359373778,1745954969068,300.0,0.00019,2]
[359373779,1745955002392,2000.0,0.0002,4]
[359373780,1745955003145,996.75,0.00046064,120]
[359373781,1745955006699,1532.6,0.00046064,30]
[359373782,1745955015525,166.03,0.00028755,30]
[359373784,1745955030329,15139.44506759,0.00046064,120]
[359373788,1745955031650,-1294.62539888,0.0001983,2]
[359373789,1745955031659,-200.0,0.0001984,2]
[359373790,1745955031669,-161.28419144,0.0001985,2]
[359373791,1745955031678,-200.0,0.00019865,2]
[359373792,1745955031687,-250.0,0.00019865,2]
[359373793,1745955031696,-248.89040968,0.00019899,2]
[359373794,1745955031707,-951.10959032,0.00019899,2]
[359373795,1745955031721,-300.0,0.00019899,2]
[359373796,1745955031731,-749.0397547,0.000199,2]
[359373797,1745955031741,-958.79225164,0.000199,2]
[359373798,1745955031752,-171.79176318,0.000199,2]
[359373799,1745955031762,-161.28419144,0.000199,2]
[359373800,1745955031771,-724.09838683,0.000199,2]
[359373801,1745955031780,-2861.00471265,0.000199,2]
[359373802,1745955031791,-2439.48566585,0.000199,2]
[359373803,1745955031802,-168.36487989,0.000199,2]
[359373804,1745955031811,-1195.70768892,0.000199,2]
[359373805,1745955031823,-2002.65164984,0.000199,2]
[359373806,1745955031834,-1170.80713633,0.000199,2]
[359373807,1745955031843,-200.0,0.0001992,2]
[359373808,1745955031852,-250.0,0.0001992,2]
[359373809,1745955031862,-500.0,0.00019973,2]
[359373810,1745955031872,-163.30322694,0.00019973,2]
[359373811,1745955031881,-500.0,0.00019973,2]
[359373812,1745955031891,-183.55775249,0.00019973,2]
[359373813,1745955031902,-316.44224751,0.00019973,2]
[359373814,1745955031911,-500.0,0.00019973,2]
[359373815,1745955031921,-500.90438284,0.00019973,2]
[359373816,1745955031930,-500.0,0.00019973,2]
[359373817,1745955031940,-503.02969115,0.00019973,2]
[359373818,1745955031949,-232.95368767,0.00019973,2]
[359373819,1745955032004,-267.04631233,0.00019973,2]
[359373820,1745955032013,-331.15601816,0.00019999,2]
[359373821,1745955032025,-168.84398184,0.00019999,2]
[359373823,1745955032034,-296.05563496,0.00019999,2]
[359373825,1745955032045,-203.94436504,0.00019999,2]
[359373827,1745955032055,-4270.92535366,0.0002,2]
[359373829,1745955032066,-2339.677677,0.0002,2]
[359373831,1745955032077,-2783.80509327,0.0002,2]
[359373833,1745955032088,-7616.91171774,0.0002,2]
[359373835,1745955032099,-18059.3354817,0.0002,2]
[359373839,1745955032124,-271.89861931,0.0001999,2]
[359373843,1745955032137,-38.67363297,0.0001999,2]
[359373845,1745955032146,-717.1269785,0.0002,2]
[359373847,1745955032158,-574.42573208,0.0002,2]
[359373852,1745955032174,-286.751358,0.0001999,2]
[359373855,1745955032185,-23.82089428,0.0001999,2]
[359373858,1745955032195,-1768.83809021,0.0002,2]
[359373861,1745955032209,-3777.71549535,0.0002,2]
[359373863,1745955032220,-1952.72595287,0.0002,2]
[359374000,1745955037878,-90609.08901148,0.000199,2]
[359374001,1745955037887,-310.57225228,0.0001999,2]
[359374002,1745955037897,-3846449.17378208,0.0002,2]
[359374014,1745955040203,-3598.72280222,0.0002,2]
[359374019,1745955042920,-504.4852,0.000199,2]
[359374020,1745955043028,-3569.81158164,0.000199,2]
[359374021,1745955043038,-4811110.06209928,0.0002,2]
[359374022,1745955043048,-37351.69840631,0.0002,2]
[359374023,1745955043057,-4303.11545053,0.0002,2]
[359374024,1745955043067,-709.39652791,0.0002,2]
[359374025,1745955043076,-542518.79147801,0.0002,2]
[359374026,1745955043087,-190347.67708641,0.0002,2]
[359374027,1745955043098,-268.61,0.0002,2]
[359374028,1745955043109,-225709.09877692,0.0002,2]
[359374031,1745955043331,-3053.38,0.0002,2]
[359374032,1745955043342,-14351.0,0.0002,2]
[359374033,1745955043353,-436.23939232,0.0002,2]
[359374034,1745955043380,-275.94557867,0.0002,2]
[359374035,1745955043391,-738.05,0.0002,2]
[359374038,1745955045894,-33337.05034996,0.0002,2]
[359374039,1745955045946,-500.0,0.0002,2]
[359374040,1745955303155,2979.744,0.00046139,60]
[359374041,1745955303368,996.75,0.00046139,120]
[359374042,1745955318664,510.74644999,0.00046139,30]
[359374043,1745955334429,161.8,0.00017317,2]
[359374044,1745955335813,158.0,0.00046139,120]
[359374045,1745955343747,1004.54700895,0.00046139,30]
[359374046,1745955361796,158.0,0.00046139,120]
[359374047,1745955363596,168.03,0.00019178,2]
[359374048,1745955510428,-256.61711393,0.000196,2]
[359374049,1745955520037,-340.80881209,0.000196,2]
[359374050,1745955525936,-186.75,0.000196,2]
[359374051,1745955528539,-549.36118791,0.000196,2]
[359374052,1745955533465,-418.25925773,0.000196,2]
[359374053,1745955540870,-171.12773371,0.000196,2]
[359374054,1745955545536,764.03021862,0.00046139,60]
[359374055,1745955549566,-329.95,0.000196,2]
[359374056,1745955559707,-329.95,0.000196,2]
[359374057,1745955560225,-329.95,0.000196,2]
[359374058,1745955568992,-478.3184178,0.000196,2]
[359374059,1745955572647,-162.02547363,0.000196,2]
[359374060,1745955576910,-171.49759904,0.000196,2]
[359374061,1745955580644,-190.16713292,0.000196,2]
[359374062,1745955585033,-28.63027124,0.000196,2]
[359374063,1745955585058,-166.181,0.000196,2]
[359374064,1745955603072,1000.0,0.00046094,30]
[359374065,1745955604266,510.74644999,0.00046094,30]
[359374066,1745955606718,1532.6,0.00046094,30]
[359374067,1745955677731,762.91606,0.0002534,35]
[359374068,1745955677779,762.91606,0.0002596,36]
[359374069,1745955677832,762.91607,0.0002659,38]
[359374070,1745955677896,762.91606,0.0002721,39]
[359374071,1745955677960,762.91606,0.0002784,40]
[359374072,1745955678018,762.91607,0.0002847,42]
[359374073,1745955725519,551.07446,0.0002,23]
[359374074,1745955730849,500.0,0.00027397,120]
[359374075,1745955731484,500.0,0.00027671,120]
[359374076,1745955731801,500.0,0.00027945,120]
[359374077,1745955732049,500.0,0.00028219,120]
[359374078,1745955732664,500.0,0.00028493,120]
[359374079,1745955733140,575.37092448,0.00028767,120]
[359374080,1745955753786,-291.892839,0.00019799,2]
[359374081,1745955753809,-1200.0,0.00019899,2]
[359374082,1745955753832,-200.0,0.000199,2]
[359374083,1745955753855,-166.89403458,0.000199,2]
[359374084,1745955753880,-8141.21312642,0.000199,2]
[359374085,1745955756318,-1531.70217965,0.000199,2]
[359374086,1745955756341,-200.0,0.00019933,2]
[359374087,1745955756364,-300.0,0.00019944,2]
[359374088,1745955756386,-230.0,0.00019945,2]
[359374089,1745955756407,-446.91636506,0.00019973,2]
[359374090,1745955756427,-501.16251838,0.00019973,2]
[359374091,1745955756447,-500.0,0.00019973,2]
[359374092,1745955756471,-500.0,0.00019973,2]
[359374093,1745955756491,-500.0,0.00019973,2]
[359374094,1745955756511,-500.0,0.00019973,2]
[359374095,1745955756532,-213.69730892,0.0001999,2]
[359374096,1745955756553,-284.961,0.00019999,2]
[359374097,1745955756573,-351.43634205,0.00019999,2]
[359374098,1745955756595,-3940.12428594,0.0002,2]
[359374099,1745955757180,-10000.0,0.0002,2]
[359374100,1745955757690,-10000.0,0.0002,2]
[359374101,1745955758217,-10000.0,0.0002,2]
[359374102,1745955758733,-10000.0,0.0002,2]
[359374103,1745955759261,-10000.0,0.0002,2]
[359374104,1745955760047,-10000.0,0.0002,2]
[359374105,1745955760901,-10000.0,0.0002,2]
[359374106,1745955761869,-10000.0,0.0002,2]
[359374107,1745955768099,1000.0,0.00046094,120]
[359374108,1745955768347,1000.0,0.00046094,120]
[359374109,1745955768647,1029.99926968,0.00046094,120]
[359374110,1745955777919,-1253.0,0.000199,2]
[359374111,1745955836514,1600.0,0.00026957,120]
[359374112,1745955836629,1600.0,0.00029652,120]
[359374113,1745955878970,1000.0,0.00046094,30]
[359374114,1745955887324,1000.0,0.00046097,30]
[359374115,1745955897765,1000.0,0.00046097,30]
[359374116,1745955912337,380.0,0.00046097,30]
[359374118,1745956030866,551.07446,0.000298,44]
[359374119,1745956031076,551.07446,0.000223,28]
[359374120,1745956031141,551.07446,0.000248,34]
[359374121,1745956031186,551.07446,0.000273,39]
[359374128,1745956197646,166.03,0.00028755,30]
[359374129,1745956203097,2000.0,0.0002,4]
[359374133,1745956231818,-303.33273231,0.000198,2]
[359374134,1745956231829,-200.0,0.00019825,2]
[359374135,1745956231839,-250.0,0.0001985,2]
[359374136,1745956231848,-171.20207546,0.000199,2]
[359374137,1745956231857,-125.46519223,0.000199,2]
[359374138,1745956231881,-1578.04109096,0.000199,2]
[359374139,1745956231979,-1091.72004954,0.000199,2]
[359374140,1745956231989,-3386.93432484,0.000199,2]
[359374141,1745956232084,-5318.68945065,0.000199,2]
[359374142,1745956232094,-1200.0,0.00019972,2]
[359374143,1745956232103,-300.0,0.00019972,2]
[359374144,1745956232112,-154.50474819,0.00019973,2]
[359374145,1745956232122,-504.87009129,0.00019973,2]
[359374146,1745956232131,-500.0,0.00019973,2]
[359374147,1745956232140,-20362.6120039,0.0002,2]
[359374148,1745956232151,-96209.71306446,0.0002,2]
[359374149,1745956232162,-739.489561,0.0002,2]
[359374162,1745956237814,-1782.044,0.0002,2]
[359374170,1745956237869,-500.0,0.0002,2]
[359374172,1745956237880,-2332.38630571,0.0002,2]
[359374173,1745956238133,-515.55170183,0.0002,2]
[359374174,1745956238144,-2868995.61356912,0.0002,2]
[359374175,1745956238153,-3950.0,0.0002,2]
[359374176,1745956238165,-1251.58584787,0.0002,2]
[359374177,1745956238174,-11841.12075256,0.0002,2]
[359374178,1745956238184,-1009.8745264,0.0002,2]
[359374179,1745956238193,-1760.64649686,0.0002,2]
[359374180,1745956238202,-163.91024141,0.0002,2]
[359374181,1745956238212,-151.0,0.0002,2]
[359374182,1745956238221,-190.60160865,0.0002001,2]
[359374183,1745956238231,-5772.0,0.0002001,2]
[359374184,1745956238240,-8705.6237754,0.00020722,2]
[359374185,1745956238250,-20706.94,0.00020787,2]
[359374186,1745956238261,-1154.33641835,0.00021,2]
[359374187,1745956238270,-190.5174988,0.00021,2]
[359374188,1745956238280,-350.0,0.00021,2]
[359374189,1745956238289,-2000.0,0.00021173,2]
[359374190,1745956238298,-200.0,0.00021218,2]
[359374191,1745956238308,-200.0,0.00021283,2]
[359374192,1745956238317,-2255.06,0.0002133,2]
[359374193,1745956238326,-1716.19,0.00021432,2]
[359374194,1745956238336,-440.83,0.00021547,2]
[359374195,1745956238346,-1600.0,0.00021565,2]
[359374196,1745956238356,-2702.63,0.00021606,2]
[359374197,1745956238366,-15943.33,0.00021646,2]
[359374198,1745956238376,-7312.75691596,0.000217,2]
[359374199,1745956238385,-420.0,0.00021747,2]
[359374200,1745956238396,-200.0,0.0002178,2]
[359374202,1745956238405,-200.0,0.0002178,2]
[359374203,1745956238417,-250.0,0.0002178,2]
[359374204,1745956238426,-200.0,0.0002178,2]
[359374205,1745956238435,-250.0,0.0002178,2]
[359374206,1745956238445,-5434.0,0.000218,2]
[359374207,1745956238454,-150.0,0.00021821,2]
[359374208,1745956238464,-1680.0,0.00021852,2]
[359374209,1745956238473,-150.0,0.00021917,2]
[359374210,1745956238482,-2000.0,0.00022,4]
[359374211,1745956238492,-247.68643105,0.00022,2]
[359374212,1745956238501,-652.35546811,0.00022,7]
[359374213,1745956238511,-500.0,0.00022,2]
[359374214,1745956238522,-2795.22633267,0.00022183,2]
[359374215,1745956238534,-186.75,0.0002227,2]
[359374216,1745956238543,-505.27130888,0.0002271,2]
[359374217,1745956238553,-1502.8689114,0.00023,2]
[359374218,1745956238563,-400.0,0.00023,2]
[359374219,1745956238573,-50379.36781842,0.000232,2]
[359374220,1745956238582,-200.0,0.000235,2]
[359374221,1745956238591,-287.0,0.00023681,2]
[359374222,1745956238602,-2351.0,0.00023909,2]
[359374223,1745956238612,-2000.0,0.00024,4]
[359374224,1745956238621,-34966.91552873,0.00024,2]
[359374225,1745956238631,-985.28492513,0.00024,2]
[359374226,1745956238640,-74410.6828254,0.00024,2]
[359374227,1745956238650,-153.81354159,0.00024,2]
[359374228,1745956238661,-625.02609961,0.00024,2]
[359374229,1745956238671,-500.0,0.00024,2]
[359374230,1745956238681,-500.0,0.00024,2]
[359374231,1745956238691,-500.0,0.00024,2]
[359374232,1745956238701,-500.0,0.00024,2]
[359374233,1745956238710,-500.0,0.00024,2]
[359374234,1745956238719,-500.0,0.00024,2]
[359374235,1745956238729,-500.0,0.00024,2]
[359374236,1745956238741,-500.59242922,0.00024,2]
[359374237,1745956238750,-500.0,0.00024,2]
[359374238,1745956238760,-545.87496632,0.00024,2]
[359374239,1745956238769,-500.0,0.00024,2]
[359374240,1745956238778,-500.40449918,0.00024,2]
[359374241,1745956238787,-536.76792142,0.00024,2]
[359374242,1745956238797,-302.17365237,0.00024,2]
[359374243,1745956238806,-407.22042839,0.0002421,2]
[359374244,1745956238815,-3568.0083663,0.0002421,2]
[359374245,1745956238824,-171.20207542,0.0002425,2]
[359374246,1745956238833,-1600.0,0.00024261,2]
[359374247,1745956238843,-2795.22633267,0.00024466,2]
[359374248,1745956238852,-500.0,0.00024773,2]
[359374249,1745956238861,-500.0,0.00024773,2]
[359374250,1745956238871,-2716.19785442,0.00024773,2]
[359374251,1745956238881,-482.73225788,0.00024773,2]
[359374252,1745956238890,-171.79176316,0.00024773,2]
[359374253,1745956238899,-1907.3364751,0.00024773,2]
[359374254,1745956238911,-585686.75356,0.000248,2]
[359374255,1745956238920,-500.0,0.00024873,2]
[359374256,1745956238929,-500.0,0.00024873,2]
[359374257,1745956238938,-500.0,0.00024873,2]
[359374258,1745956238947,-626.35575682,0.00024873,2]
[359374259,1745956238957,-92282.71860104,0.000249,2]
[359374260,1745956238983,-10144.39567344,0.000249,2]
[359374261,1745956240021,-1743.74149631,0.000249,2]
[359374262,1745956240034,-1497.7826597,0.000249,2]
[359374263,1745956240072,-510298.94115451,0.000249,2]
[359374264,1745956240082,-200.35374529,0.00025,2]
[359374265,1745956240091,-200.0,0.00025,2]
[359374266,1745956240100,-2937.49641814,0.00025,2]
[359374267,1745956240110,-1762.55691023,0.00025,2]
[359374268,1745956240119,-1027.69254568,0.00025,2]
[359374269,1745956240128,-161.51017707,0.00025,2]
[359374270,1745956240137,-450.0,0.00025,2]
[359374271,1745956240146,-3262.41534102,0.000251,2]
[359374272,1745956240156,-247.64356,0.00026,2]
[359374273,1745956240166,-2000.0,0.00026,4]
[359374274,1745956240176,-3292.0,0.0002616,2]
[359374275,1745956240185,-1000.0,0.00026301,5]
[359374276,1745956240194,-1000.0,0.00026301,5]
[359374277,1745956240203,-1000.0,0.00026301,5]
[359374278,1745956240213,-1000.0,0.00026301,5]
[359374279,1745956240223,-1000.0,0.00026301,5]
[359374280,1745956240234,-1000.0,0.00026301,5]
[359374281,1745956240244,-1000.0,0.00026301,5]
[359374282,1745956240253,-1000.0,0.00026301,5]
[359374283,1745956240263,-1000.0,0.00026301,5]
[359374284,1745956240272,-1000.0,0.00026301,5]
[359374285,1745956240281,-1000.0,0.00026301,5]
[359374286,1745956240290,-1000.0,0.00026301,5]
[359374287,1745956240300,-1000.0,0.00026301,5]
[359374288,1745956240310,-1000.0,0.00026301,5]
[359374289,1745956240319,-1000.0,0.00026301,5]
[359374290,1745956240329,-1000.0,0.00026301,5]
[359374291,1745956240339,-1000.0,0.00026301,5]
[359374292,1745956240348,-1000.0,0.00026301,5]
[359374293,1745956240358,-559.0,0.00026301,5]
[359374294,1745956240367,-924.0,0.00026301,5]
[359374295,1745956240376,-2795.22633267,0.00026749,2]
[359374296,1745956240386,-638.69,0.0002681,2]
[359374297,1745956240396,-575.74267182,0.00027,2]
[359374298,1745956240405,-7454.98840926,0.00027,2]
[359374299,1745956240415,-156.880619,0.00027,2]
[359374300,1745956240425,-500.0,0.00027,2]
[359374301,1745956240435,-5570.48003488,0.00027373,2]
[359374302,1745956240446,-156.1455668,0.00027395,2]
[359374303,1745956240457,-500.0,0.00027397,2]
[359374304,1745956240467,-470.0,0.00027397,2]
[359374305,1745956240476,-470.0,0.00027397,2]
[359374306,1745956240616,-562.49340467,0.00027397,2]
[359374307,1745956240626,-470.0,0.00027397,2]
[359374308,1745956240636,-470.0,0.00027397,2]
[359374309,1745956240645,-470.0,0.00027397,2]
[359374310,1745956240654,-507.9452062,0.00027397,2]
[359374311,1745956240664,-470.0,0.00027397,2]
[359374312,1745956240673,-470.0,0.00027397,2]
[359374313,1745956240682,-522.5952941,0.00027397,2]
[359374314,1745956240692,-1000.0,0.00027397,2]
[359374315,1745956240702,-502.27352548,0.00027397,2]
[359374316,1745956240712,-470.0,0.00027397,2]
[359374317,1745956240722,-470.0,0.00027397,2]
[359374318,1745956240732,-470.0,0.00027397,2]
[359374319,1745956240741,-470.0,0.00027397,2]
[359374320,1745956240750,-470.0,0.00027397,2]
[359374321,1745956240760,-470.0,0.00027397,2]
[359374322,1745956240769,-500.0,0.00027397,2]
[359374323,1745956240778,-500.0,0.00027397,2]
[359374324,1745956240787,-470.0,0.00027397,2]
[359374325,1745956240797,-470.0,0.00027397,2]
[359374326,1745956240806,-470.0,0.00027397,2]
[359374327,1745956240816,-470.0,0.00027397,2]
[359374328,1745956240825,-470.0,0.00027397,2]
[359374329,1745956240834,-470.0,0.00027397,2]
[359374330,1745956240844,-470.0,0.00027397,2]
[359374331,1745956240853,-509.66147672,0.00027397,2]
[359374332,1745956240864,-470.0,0.00027397,2]
[359374333,1745956240873,-470.0,0.00027397,2]
[359374334,1745956240883,-470.0,0.00027397,2]
[359374335,1745956240892,-500.0,0.00027397,2]
[359374336,1745956240902,-470.0,0.00027397,2]
[359374337,1745956240910,-535.82167926,0.00027397,2]
[359374338,1745956240919,-470.0,0.00027397,2]
[359374339,1745956240929,-470.0,0.00027397,2]
[359374340,1745956240938,-470.0,0.00027397,2]
[359374341,1745956240946,-470.0,0.00027397,2]
[359374342,1745956240956,-503.66838015,0.00027397,2]
[359374343,1745956240965,-470.0,0.00027397,2]
[359374344,1745956240974,-500.0,0.00027397,2]
[359374345,1745956240983,-549.07309586,0.00027397,2]
[359374346,1745956240993,-387.70631395,0.00027397,2]
[359374347,1745956241076,-82.29368605,0.00027397,2]
[359374348,1745956241085,-470.0,0.00027397,2]
[359374349,1745956241095,-470.0,0.00027397,2]
[359374350,1745956241104,-470.0,0.00027397,2]
[359374351,1745956241114,-470.0,0.00027397,2]
[359374352,1745956241123,-470.0,0.00027397,2]
[359374353,1745956241132,-470.0,0.00027397,2]
[359374354,1745956241141,-507.84236058,0.00027397,2]
[359374355,1745956241150,-509.22699055,0.00027397,2]
[359374356,1745956241159,-470.0,0.00027397,2]
[359374357,1745956241169,-470.0,0.00027397,2]
[359374358,1745956241178,-113.76816877,0.00027397,2]
[359374359,1745956241690,-356.23183123,0.00027397,2]
[359374360,1745956241699,-470.0,0.00027397,2]
[359374361,1745956241709,-470.0,0.00027397,2]
[359374362,1745956241718,-470.0,0.00027397,2]
[359374363,1745956241729,-470.0,0.00027397,2]
[359374364,1745956241737,-351.41064222,0.00027397,2]
[359374365,1745956241750,-118.58935778,0.00027397,2]
[359374366,1745956241760,-470.0,0.00027397,2]
[359374367,1745956241770,-558.39767336,0.00027397,2]
[359374368,1745956241779,-470.0,0.00027397,2]
[359374369,1745956241788,-509.28013165,0.00027397,2]
[359374370,1745956241797,-470.0,0.00027397,2]
[359374371,1745956241807,-502.07368996,0.00027397,2]
[359374372,1745956241816,-470.0,0.00027397,2]